bitfinex/quotes_SOLUSD_20220116
["timestamp","ask_amount","ask_price","bid_price","bid_amount"]
[1642307306113,6.48769102,147.22,147.11,142.89815209]
[1642307306711,6.48769102,147.22,147.11,265.86815209]
[1642307306909,6.48769102,147.2,147.11,265.86815209]
[1642307307110,3.13604998,147.23,147.13,68.04]
[1642307307315,24.4512,147.28,147.14,10.1]
[1642307307512,24.4512,147.28,147.15,22.5902]
[1642307307710,24.4512,147.28,147.16,9.84]
[1642307307908,24.4512,147.28,147.17,68.04]
[1642307308108,24.7012,147.28,147.17,77.88]
[1642307308409,17.74427281,147.27,147.18,37.78207057]
[1642307308609,17.74427281,147.27,147.19,9.84]
[1642307308810,17.99427281,147.27,147.2,0.26]
[1642307309008,17.99427281,147.27,147.2,10.1]
[1642307309208,17.99427281,147.27,147.2,16.35]
[1642307310112,17.74427281,147.27,147.21,46.54196107]
[1642307310311,17.74427281,147.27,147.21,46.79196107]
[1642307310710,17.74427281,147.27,147.21,0.25]
[1642307311311,17.99427281,147.27,147.21,0.25]
[1642307311511,17.99427281,147.27,147.2,16.35]
[1642307313114,17.74427281,147.27,147.2,16.35]
[1642307313512,17.74427281,147.27,147.2,84.39]
[1642307319118,17.74427281,147.27,147.2,16.35]
[1642307319319,17.74427281,147.27,147.2,10.35]
[1642307321321,17.74427281,147.27,147.2,16.35]
[1642307322421,17.74427281,147.27,147.2,84.39]
[1642307324532,23.5307,147.31,147.2,89.808]
[1642307324724,23.5307,147.31,147.2,114.92374857]
[1642307324725,23.8048,147.3,147.2,114.92374857]
[1642307325529,43.28943473,147.3,147.2,114.92374857]
[1642307327424,23.2508,147.35,147.2,114.92374857]
[1642307327624,22.7437,147.34,147.2,114.92374857]
[1642307327825,22.7437,147.34,147.2,237.89374857]
[1642307328026,22.9937,147.34,147.2,237.89374857]
[1642307328254,22.7437,147.34,147.2,237.89374857]
[1642307328427,17.59494438,147.33,147.2,249.08815983]
[1642307328924,17.59494438,147.33,147.2,251.01290055]
[1642307330025,17.59494438,147.33,147.2,245.59490055]
[1642307330727,24.8565,147.32,147.2,245.59490055]
[1642307332328,25.1065,147.32,147.2,245.59490055]
[1642307332528,25.1065,147.32,147.2,234.40048929]
[1642307332731,31.1065,147.32,147.2,234.40048929]
[1642307332929,31.1065,147.32,147.2,166.36048929]
[1642307333132,31.1065,147.32,147.2,166.10048929]
[1642307333431,31.1065,147.32,147.2,142.34098929]
[1642307334431,31.1065,147.32,147.21,0.26]
[1642307334632,25.1065,147.32,147.21,10.1]
[1642307334832,25.1065,147.32,147.22,46.68070682]
[1642307335131,25.1065,147.32,147.23,9.84]
[1642307335332,25.1065,147.32,147.23,16.35]
[1642307335633,24.8565,147.32,147.23,10.35]
[1642307335830,24.8565,147.32,147.25,42.75177913]
[1642307336235,24.8565,147.32,147.26,0.26]
[1642307338838,1.80188711,147.36,147.26,0.26]
[1642307339036,1.80188711,147.36,147.27,11.19624857]
[1642307339237,2.05188711,147.36,147.27,11.19624857]
[1642307339536,2.05188711,147.36,147.28,1.61624857]
[1642307339737,2.05188711,147.36,147.28,10.1]
[1642307339937,19.30101268,147.35,147.28,58.77441552]
[1642307340337,19.55101268,147.35,147.28,58.77441552]
[1642307340741,19.55101268,147.35,147.28,59.02441552]
[1642307341742,19.55101268,147.35,147.28,127.06441552]
[1642307346767,19.30101268,147.35,147.28,127.06441552]
[1642307347267,19.30101268,147.35,147.28,59.02441552]
[1642307349965,18.80101268,147.35,147.28,127.06441552]
[1642307352174,18.80101268,147.35,147.28,59.02441552]
[1642307353974,19.05101268,147.35,147.28,16.09]
[1642307356276,19.05101268,147.35,147.28,15.84]
[1642307356477,19.05101268,147.35,147.28,9.84]
[1642307356675,19.05101268,147.35,147.23,1.92474072]
[1642307356877,23.0599,147.34,147.23,1.92474072]
[1642307357076,29.0599,147.34,147.23,1.92474072]
[1642307357280,29.3099,147.34,147.23,1.92474072]
[1642307357477,1.80188711,147.33,147.21,1.92474072]
[1642307357677,1.80188711,147.33,147.21,2.18474072]
[1642307357877,5.19620134,147.32,147.21,56.76741199]
[1642307358282,5.44620134,147.32,147.21,56.76741199]
[1642307358479,5.44620134,147.32,147.21,55.09267127]
[1642307358679,7.24808845,147.32,147.21,55.09267127]
[1642307359478,1.80188711,147.31,147.21,55.09267127]
[1642307359883,2.05188711,147.31,147.21,55.09267127]
[1642307360080,24.78128711,147.31,147.21,55.09267127]
[1642307361082,24.78128711,147.31,147.21,49.09267127]
[1642307362883,22.9794,147.31,147.21,49.09267127]
[1642307364284,24.78128711,147.31,147.21,49.09267127]
[1642307364684,24.78128711,147.31,147.22,11.19624857]
[1642307364883,24.78128711,147.31,147.23,0.26]
[1642307365687,24.53128711,147.31,147.23,0.26]
[1642307365887,24.53128711,147.31,147.24,36.77077393]
[1642307366088,22.7294,147.31,147.24,36.77077393]
[1642307366291,22.7294,147.31,147.25,0.26]
[1642307367491,22.7294,147.31,147.25,11.45624857]
[1642307367891,22.7294,147.31,147.25,17.70624857]
[1642307369393,5.19620134,147.32,147.25,17.70624857]
[1642307369793,22.8796,147.33,147.25,17.70624857]
[1642307369995,23.1296,147.33,147.25,17.70624857]
[1642307370802,22.8796,147.33,147.26,68.04]
[1642307371004,22.8796,147.33,147.27,117.99374721]
[1642307371204,22.8796,147.33,147.28,9.84]
[1642307371503,22.8796,147.33,147.28,17.70624857]
[1642307373904,22.8796,147.33,147.28,16.35]
[1642307374106,21.88210668,147.34,147.28,16.35]
[1642307374305,21.88210668,147.34,147.28,16.09]
[1642307374504,22.13210668,147.34,147.28,10.09]
[1642307374706,22.13210668,147.34,147.28,9.84]
[1642307374905,22.13210668,147.34,147.25,9.84]
[1642307375307,22.13210668,147.34,147.25,16.09]
[1642307375505,22.13210668,147.34,147.25,15.84]
[1642307376307,22.13210668,147.34,147.25,16.09]
[1642307376507,23.93399379,147.34,147.25,6.25]
[1642307377427,1.80188711,147.33,147.25,0.25]
[1642307377628,24.45738711,147.33,147.25,0.25]
[1642307377835,24.70738711,147.33,147.22,16.09]
[1642307379229,24.70738711,147.33,147.23,39.910997]
[1642307379428,24.70738711,147.33,147.23,0.25]
[1642307380432,24.70738711,147.33,147.23,46.9205949]
[1642307380631,24.70738711,147.33,147.24,0.26]
[1642307381231,22.9055,147.33,147.24,0.26]
[1642307382332,22.9055,147.33,147.24,1.61624857]
[1642307382532,22.9055,147.33,147.24,1.86624857]
[1642307386532,22.6555,147.33,147.24,1.86624857]
[1642307386733,22.6555,147.33,147.25,9.84]
[1642307386935,22.6555,147.33,147.26,45.3011005]
[1642307387337,22.6555,147.33,147.26,61.3911005]
[1642307388139,21.88210668,147.34,147.26,61.3911005]
[1642307388535,1.80188711,147.35,147.27,1.35624857]
[1642307389037,2.05188711,147.35,147.28,0.26]
[1642307389336,2.05188711,147.35,147.28,10.1]
[1642307389337,0.25,147.35,147.28,10.1]
[1642307389542,1.80188711,147.36,147.29,1.35624857]
[1642307389937,1.80188711,147.36,147.3,0.26]
[1642307390536,19.22095585,147.36,147.3,39.82938547]
[1642307390740,19.22095585,147.36,147.3,40.07938547]
[1642307390938,19.47095585,147.36,147.3,40.07938547]
[1642307391539,17.66906874,147.36,147.3,40.07938547]
[1642307393358,17.66906874,147.36,147.3,0.51]
[1642307393553,17.66906874,147.36,147.3,0.26]
[1642307393952,17.66906874,147.36,147.29,0.26]
[1642307394153,17.66906874,147.36,147.29,10.1]
[1642307394353,17.66906874,147.36,147.29,16.35]
[1642307400083,1.80188711,147.37,147.29,23.43124857]
[1642307400484,2.05188711,147.37,147.29,23.43124857]
[1642307401089,17.48460053,147.37,147.29,23.43124857]
[1642307402488,1.80188711,147.38,147.29,23.43124857]
[1642307403297,1.80188711,147.38,147.29,46.41754857]
[1642307403491,19.75585026,147.38,147.29,46.41754857]
[1642307403892,17.95396315,147.38,147.29,114.45754857]
[1642307404090,17.95396315,147.38,147.29,108.73254857]
[1642307404291,17.95396315,147.38,147.29,40.44254857]
[1642307404491,17.95396315,147.38,147.29,39.0863]
[1642307404891,17.95396315,147.38,147.29,15.84]
[1642307405097,17.95396315,147.38,147.29,9.84]
[1642307405292,17.95396315,147.38,147.29,15.84]
[1642307405493,18.20396315,147.38,147.29,15.84]
[1642307405691,18.20396315,147.38,147.29,16.09]
[1642307406593,20.00585026,147.38,147.29,16.09]
[1642307407996,19.75585026,147.38,147.29,16.09]
[1642307408195,20.00585026,147.38,147.29,16.09]
[1642307409595,6.04325087,147.33,147.29,16.09]
[1642307409999,6.04325087,147.33,147.29,10.09]
[1642307411501,25.54799392,147.34,147.29,10.09]
[1642307412301,25.54799392,147.34,147.3,0.26]
[1642307413504,25.54799392,147.34,147.29,10.09]
[1642307414532,12.77399696,147.34,147.29,10.09]
[1642307414732,12.77399696,147.32,147.29,10.09]
[1642307415134,0.35506142,147.31,147.29,10.09]
[1642307415432,0.35506142,147.31,147.3,3.03219997]
[1642307415940,0.35506142,147.31,147.3,3.28219997]
[1642307416335,25.54799392,147.32,147.3,3.28219997]
[1642307419837,12.77399696,147.32,147.3,3.28219997]
[1642307420038,12.77399696,147.31,147.3,3.28219997]
[1642307420439,25.54799392,147.31,147.3,3.28219997]
[1642307420839,28.58019389,147.31,147.3,0.25]
[1642307421041,28.58019389,147.31,147.27,16.09]
[1642307425141,12.77399696,147.31,147.27,16.09]
[1642307425341,12.77399696,147.29,147.27,16.09]
[1642307425742,12.77399696,147.28,147.27,16.09]
[1642307425942,12.77399696,147.29,147.27,16.35]
[1642307426142,12.77399696,147.29,147.27,16.09]
[1642307426543,12.77399696,147.29,147.28,38.64324269]
[1642307426742,16.86229735,147.33,147.28,38.64324269]
[1642307426943,16.86229735,147.33,147.28,44.89324269]
[1642307427147,1.80188711,147.36,147.28,44.89324269]
[1642307427346,2.05188711,147.36,147.28,44.89324269]
[1642307427747,0.25,147.36,147.28,44.89324269]
[1642307428147,22.78771533,147.36,147.28,44.89324269]
[1642307430553,22.78771533,147.36,147.28,54.73324269]
[1642307432851,22.78771533,147.36,147.28,16.09]
[1642307433453,22.78771533,147.36,147.28,9.84]
[1642307434451,1.80188711,147.35,147.28,9.84]
[1642307434852,8.05188711,147.35,147.28,10.09]
[1642307435052,2.05188711,147.35,147.28,10.09]
[1642307435453,8.05188711,147.35,147.28,10.09]
[1642307436353,2.05188711,147.35,147.28,10.09]
[1642307440986,2.05188711,147.35,147.28,0.25]
[1642307441187,25.35438711,147.35,147.25,8.17474072]
[1642307441387,31.35438711,147.35,147.25,8.17474072]
[1642307442287,31.35438711,147.35,147.25,2.17474072]
[1642307442990,1.80188711,147.34,147.24,1.92474072]
[1642307443187,1.45949869,147.33,147.24,1.92474072]
[1642307443389,7.70949869,147.33,147.24,1.92474072]
[1642307443588,1.70949869,147.33,147.23,1.92474072]
[1642307443788,23.5841,147.32,147.23,1.92474072]
[1642307444090,23.5841,147.32,147.23,7.92474072]
[1642307444289,23.8341,147.32,147.23,8.17474072]
[1642307446289,23.8341,147.32,147.23,2.17474072]
[1642307447894,23.8341,147.32,147.23,8.17474072]
[1642307448792,29.8341,147.32,147.23,8.17474072]
[1642307449190,23.8341,147.32,147.23,8.17474072]
[1642307450792,23.8341,147.32,147.23,2.17474072]
[1642307451892,29.8341,147.32,147.23,2.17474072]
[1642307452092,23.8341,147.32,147.23,2.17474072]
[1642307452794,29.8341,147.32,147.23,2.17474072]
[1642307453593,23.8341,147.32,147.23,2.17474072]
[1642307454794,29.8341,147.32,147.23,2.17474072]
[1642307455998,23.8341,147.32,147.23,2.17474072]
[1642307456196,29.8341,147.32,147.23,2.17474072]
[1642307460807,97.8741,147.32,147.23,1.92474072]
[1642307461011,97.8741,147.32,147.23,2.17474072]
[1642307461403,29.8341,147.32,147.23,2.17474072]
[1642307461706,39.6741,147.32,147.23,2.17474072]
[1642307461905,39.6741,147.32,147.23,0.25]
[1642307462306,39.6741,147.32,147.21,2.17474072]
[1642307462506,41.47598711,147.32,147.21,2.17474072]
[1642307463612,109.51598711,147.32,147.21,2.17474072]
[1642307464207,107.7141,147.32,147.21,2.17474072]
[1642307465110,107.7141,147.32,147.22,1.92474072]
[1642307465509,107.7141,147.32,147.22,2.17474072]
[1642307467138,109.51598711,147.32,147.22,0.25]
[1642307467338,109.51598711,147.32,147.21,2.17474072]
[1642307470342,109.51598711,147.32,147.21,0.25]
[1642307470743,109.51598711,147.32,147.2,2.17474072]
[1642307471543,119.70228711,147.32,147.2,1.92474072]
[1642307471741,119.70228711,147.32,147.2,2.17474072]
[1642307472142,119.70228711,147.32,147.2,1.92474072]
[1642307472342,121.40306299,147.32,147.2,1.92474072]
[1642307472544,1.80188711,147.31,147.19,1.92474072]
[1642307472742,68.04,147.29,147.19,1.92474072]
[1642307472943,68.04,147.27,147.17,1.92474072]
[1642307473143,92.0853,147.26,147.17,1.92474072]
[1642307473344,98.3353,147.26,147.17,2.17474072]
[1642307474643,98.3353,147.26,147.17,0.25]
[1642307474844,98.3353,147.26,147.16,96.57474072]
[1642307475550,30.2953,147.26,147.16,2.17474072]
[1642307475757,98.3353,147.26,147.16,2.17474072]
[1642307477146,99.79469081,147.26,147.16,2.17474072]
[1642307477347,31.75469081,147.26,147.16,0.25]
[1642307477747,31.75469081,147.26,147.14,8.17474072]
[1642307477947,31.75469081,147.26,147.14,26.50734072]
[1642307478148,31.75469081,147.26,147.14,32.50734072]
[1642307478350,99.79469081,147.26,147.14,32.50734072]
[1642307481555,99.79469081,147.26,147.14,30.5826]
[1642307483456,31.75469081,147.26,147.14,30.5826]
[1642307487287,31.75469081,147.26,147.14,32.50734072]
[1642307493994,31.75469081,147.26,147.15,1.92474072]
[1642307494493,99.79469081,147.26,147.15,2.17474072]
[1642307494896,99.79469081,147.26,147.15,1.92474072]
[1642307495098,68.04,147.24,147.15,1.92474072]
[1642307495396,68.04,147.22,147.15,1.92474072]
[1642307495796,1.97270673,147.21,147.13,3.3344465]
[1642307495998,7.97270673,147.21,147.13,3.3344465]
[1642307496198,68.04,147.2,147.13,3.3344465]
[1642307496398,74.29,147.2,147.13,9.3344465]
[1642307496599,74.29,147.2,147.13,3.3344465]
[1642307496899,74.29,147.2,147.13,9.3344465]
[1642307497099,6.25,147.2,147.13,3.3344465]
[1642307497303,0.25,147.2,147.13,3.3344465]
[1642307497499,6.25,147.2,147.14,40.19454587]
[1642307497700,6.0,147.2,147.14,40.19454587]
[1642307497899,6.25,147.2,147.14,40.19454587]
[1642307498101,0.25,147.2,147.14,40.19454587]
[1642307498301,6.25,147.2,147.14,40.19454587]
[1642307498502,6.25,147.2,147.13,3.3344465]
[1642307498702,6.25,147.2,147.13,9.3344465]
[1642307499115,6.25,147.2,147.13,3.3344465]
[1642307499401,0.25,147.2,147.13,52.09950182]
[1642307499604,6.25,147.2,147.13,58.09950182]
[1642307499804,26.68330673,147.21,147.13,52.09950182]
[1642307500100,0.25,147.2,147.13,52.09950182]
[1642307500702,0.25,147.2,147.13,58.09950182]
[1642307501405,32.68330673,147.21,147.13,58.09950182]
[1642307502005,32.68330673,147.21,147.13,9.3344465]
[1642307502508,26.68330673,147.21,147.13,9.3344465]
[1642307502906,26.68330673,147.21,147.13,3.5844465]
[1642307503106,26.68330673,147.21,147.13,50.45011286]
[1642307503307,26.68330673,147.21,147.13,56.45011286]
[1642307503607,32.68330673,147.21,147.13,5.50918722]
[1642307503806,26.68330673,147.21,147.13,11.50918722]
[1642307504207,26.43330673,147.21,147.13,11.50918722]
[1642307504408,26.68330673,147.21,147.13,5.50918722]
[1642307504608,26.68330673,147.21,147.13,60.18645243]
[1642307504810,32.68330673,147.21,147.13,54.18645243]
[1642307505515,26.68330673,147.21,147.13,54.18645243]
[1642307505711,32.68330673,147.21,147.13,54.18645243]
[1642307506111,26.68330673,147.21,147.13,54.18645243]
[1642307506315,32.68330673,147.21,147.13,54.18645243]
[1642307506711,26.68330673,147.21,147.13,54.18645243]
[1642307508112,24.4606,147.21,147.13,54.18645243]
[1642307508412,23.7703,147.25,147.13,55.53818306]
[1642307508612,28.7749,147.24,147.14,24.7402]
[1642307508811,22.7749,147.24,147.14,24.7402]
[1642307509012,28.7749,147.24,147.14,24.9902]
[1642307509213,19.42763373,147.23,147.14,24.7402]
[1642307509412,25.67763373,147.23,147.14,26.91494072]
[1642307509814,22.777,147.22,147.14,26.91494072]
[1642307510212,23.027,147.22,147.14,26.91494072]
[1642307510416,23.027,147.22,147.14,24.7402]
[1642307510617,29.027,147.22,147.14,24.9902]
[1642307510813,29.027,147.22,147.13,5.25918722]
[1642307512039,29.027,147.22,147.13,3.3344465]
[1642307513045,68.04,147.21,147.13,3.3344465]
[1642307513444,74.29,147.21,147.13,3.3344465]
[1642307518952,75.99077588,147.21,147.13,3.3344465]
[1642307520053,23.4492,147.2,147.13,3.3344465]
[1642307520354,97.4892,147.2,147.13,3.3344465]
[1642307521455,97.7392,147.2,147.13,3.3344465]
[1642307526363,109.27997588,147.2,147.13,3.3344465]
[1642307527561,119.47447588,147.2,147.13,3.3344465]
[1642307531370,68.04,147.18,147.08,1.92474072]
[1642307531669,10.1974,147.16,147.08,1.92474072]
[1642307531865,24.8529,147.15,147.08,1.92474072]
[1642307532065,24.8529,147.15,147.05,3.86269742]
[1642307532066,4.56958029,147.14,147.05,5.78743814]
[1642307532268,4.56958029,147.14,147.05,7.92474072]
[1642307532466,10.81958029,147.14,147.05,1.92474072]
[1642307532667,10.81958029,147.14,147.05,7.92474072]
[1642307532866,10.81958029,147.14,147.05,1.92474072]
[1642307533069,10.81958029,147.14,147.04,67.516768]
[1642307533268,16.18858029,147.14,147.04,24.69424072]
[1642307533468,16.18858029,147.14,147.04,1.92474072]
[1642307533469,68.04,147.13,147.04,1.92474072]
[1642307533667,22.5808,147.12,147.04,1.92474072]
[1642307533868,30.53157588,147.12,147.04,1.92474072]
[1642307534068,30.53157588,147.12,147.03,1.92474072]
[1642307534471,98.57157588,147.12,147.03,1.92474072]
[1642307534869,96.8708,147.12,147.03,1.92474072]
[1642307535070,96.8708,147.12,147.02,24.0042]
[1642307536074,96.8708,147.12,147.02,69.58013593]
[1642307540879,96.3708,147.12,147.02,69.58013593]
[1642307541081,28.3308,147.12,147.02,69.58013593]
[1642307544982,38.5311,147.12,147.02,69.58013593]
[1642307545383,106.5711,147.12,147.02,69.58013593]
[1642307546009,38.5311,147.12,147.02,69.58013593]
[1642307546212,28.3308,147.12,147.02,69.58013593]
[1642307546509,28.3308,147.12,147.02,69.83013593]
[1642307546714,28.0808,147.12,147.02,69.83013593]
[1642307547120,22.0808,147.12,147.02,69.58013593]
[1642307547310,22.0808,147.12,147.02,69.83013593]
[1642307548010,22.3308,147.12,147.02,69.83013593]
[1642307548413,28.3308,147.12,147.02,69.83013593]
[1642307549814,28.3308,147.12,147.02,69.58013593]
[1642307550015,28.3308,147.12,147.02,69.83013593]
[1642307550214,28.0808,147.12,147.02,69.83013593]
[1642307550415,6.0,147.12,147.02,69.83013593]
[1642307550616,6.0,147.12,147.02,71.178618]
[1642307550818,4.56958029,147.14,147.03,10.1]
[1642307551018,4.56958029,147.14,147.04,24.7669]
[1642307551217,23.8871,147.17,147.04,24.7669]
[1642307551418,30.1371,147.17,147.04,25.0169]
[1642307552016,29.8871,147.17,147.04,25.0169]
[1642307552219,20.60877922,147.16,147.04,24.7669]
[1642307552419,20.60877922,147.16,147.04,25.0169]
[1642307552618,23.7664,147.15,147.04,25.0169]
[1642307552818,29.7664,147.15,147.04,25.0169]
[1642307553318,30.0164,147.15,147.04,25.0169]
[1642307556121,24.0164,147.15,147.04,25.0169]
[1642307556322,24.0164,147.15,147.04,26.94164072]
[1642307556822,30.0164,147.15,147.04,26.94164072]
[1642307557023,30.0164,147.15,147.05,1.92474072]
[1642307557425,30.0164,147.15,147.05,2.17474072]
[1642307561430,24.0164,147.15,147.05,2.17474072]
[1642307562032,20.60877922,147.16,147.05,2.17474072]
[1642307562432,20.60877922,147.16,147.06,1.92474072]
[1642307562633,20.60877922,147.16,147.07,38.98227974]
[1642307562833,20.60877922,147.16,147.07,39.23227974]
[1642307563233,26.60877922,147.16,147.07,39.23227974]
[1642307563434,26.85877922,147.16,147.07,39.23227974]
[1642307563835,20.85877922,147.16,147.07,39.23227974]
[1642307564442,26.85877922,147.16,147.07,39.23227974]
[1642307570143,26.85877922,147.16,147.07,41.15702046]
[1642307571143,26.85877922,147.16,147.07,39.23227974]
[1642307571943,26.85877922,147.16,147.07,41.15702046]
[1642307577081,20.85877922,147.16,147.07,41.15702046]
[1642307577483,20.85877922,147.16,147.07,50.99702046]
[1642307577681,0.25,147.16,147.07,50.99702046]
[1642307577881,0.25,147.18,147.08,24.3821]
[1642307578081,51.07138711,147.2,147.08,24.3821]
[1642307578280,32.74168711,147.2,147.08,42.42132279]
[1642307578680,23.32533847,147.19,147.08,42.42132279]
[1642307578881,23.32533847,147.19,147.09,9.84]
[1642307579382,23.32533847,147.19,147.1,24.0667]
[1642307579580,23.32533847,147.19,147.1,25.99144072]
[1642307579782,23.32533847,147.19,147.1,26.24144072]
[1642307581484,23.32533847,147.19,147.1,36.08144072]
[1642307581681,23.57533847,147.19,147.1,36.08144072]
[1642307582082,29.57533847,147.19,147.1,36.08144072]
[1642307582582,29.57533847,147.19,147.1,34.1567]
[1642307583381,1.80188711,147.22,147.1,34.1567]
[1642307583582,8.05188711,147.22,147.1,34.1567]
[1642307583785,2.05188711,147.22,147.1,34.1567]
[1642307583982,6.25,147.22,147.11,1.92474072]
[1642307584483,20.99281774,147.21,147.12,37.79890271]
[1642307584882,27.24281774,147.21,147.12,38.04890271]
[1642307586385,27.24281774,147.21,147.12,37.79890271]
[1642307586582,27.24281774,147.21,147.12,38.04890271]
[1642307586984,23.1364,147.2,147.12,37.79890271]
[1642307587184,23.1364,147.2,147.12,38.04890271]
[1642307587383,29.3864,147.2,147.12,37.79890271]
[1642307587587,29.3864,147.2,147.12,0.25]
[1642307587883,29.3864,147.2,147.1,26.24144072]
[1642307588383,29.3864,147.2,147.1,24.3167]
[1642307588584,29.3864,147.2,147.11,36.20422162]
[1642307588987,6.0,147.2,147.11,36.45422162]
[1642307589187,1.80188711,147.22,147.12,11.18121006]
[1642307589386,1.80188711,147.22,147.13,24.4213]
[1642307589585,1.80188711,147.22,147.14,9.84]
[1642307589986,19.86789061,147.24,147.14,11.43121006]
[1642307590187,19.86789061,147.24,147.16,40.00267333]
[1642307590397,19.86789061,147.24,147.16,40.25267333]
[1642307591990,1.80188711,147.28,147.17,0.26]
[1642307592190,1.80188711,147.28,147.17,25.2335]
[1642307592390,1.80188711,147.28,147.17,26.82471006]
[1642307592590,32.7627,147.3,147.17,26.82471006]
[1642307592990,19.59426539,147.29,147.17,26.82471006]
[1642307593390,25.59426539,147.29,147.17,26.82471006]
[1642307593793,19.59426539,147.29,147.17,26.56471006]
[1642307594093,19.84426539,147.29,147.17,25.2235]
[1642307594292,22.426,147.28,147.17,25.2235]
[1642307594892,22.676,147.28,147.17,25.2235]
[1642307595392,28.676,147.28,147.17,25.2235]
[1642307595697,28.676,147.28,147.17,24.9735]
[1642307596794,28.676,147.28,147.17,25.2235]
[1642307597294,28.676,147.28,147.17,24.9735]
[1642307597495,28.676,147.28,147.17,25.2235]
[1642307598923,21.3961525,147.29,147.21,0.32273584]
[1642307599326,1.80188711,147.29,147.22,1.34121006]
[1642307599524,1.80188711,147.29,147.25,0.30200327]
[1642307599725,8.711e-05,147.29,147.25,0.30200327]
[1642307599925,8.711e-05,147.29,147.25,1.64321333]
[1642307600125,3.45492949,147.33,147.25,1.64321333]
[1642307600327,20.28251714,147.33,147.26,16.60506543]
[1642307600826,20.28251714,147.33,147.26,16.85506543]
[1642307602930,20.28251714,147.33,147.26,26.69506543]
[1642307603628,20.28251714,147.33,147.26,28.03627549]
[1642307603830,23.18,147.39,147.26,28.03627549]
[1642307604227,29.43,147.39,147.26,28.03627549]
[1642307604828,18.52641313,147.38,147.26,28.03627549]
[1642307605229,18.77641313,147.38,147.26,28.03627549]
[1642307605430,18.77641313,147.38,147.26,26.69506543]
[1642307605829,24.77641313,147.38,147.26,26.69506543]
[1642307608732,24.77641313,147.38,147.26,10.09]
[1642307608934,68.04,147.37,147.26,10.09]
[1642307609134,24.77641313,147.38,147.26,10.09]
[1642307609335,92.81641313,147.38,147.26,10.09]
[1642307610436,24.77641313,147.38,147.26,10.09]
[1642307611137,24.77641313,147.38,147.26,9.84]
[1642307611335,68.04,147.37,147.26,10.09]
[1642307611736,97.8213,147.37,147.26,10.09]
[1642307613737,97.8213,147.37,147.26,0.25]
[1642307614035,97.8213,147.37,147.23,40.1047]
[1642307616736,97.8213,147.37,147.24,1.34121006]
[1642307616937,97.8213,147.37,147.24,6.25]
[1642307617540,97.8213,147.37,147.24,0.25]
[1642307617836,97.8213,147.37,147.24,6.25]
[1642307618936,97.8213,147.37,147.24,0.25]
[1642307619137,97.8213,147.37,147.23,64.4274]
[1642307619338,29.7813,147.37,147.23,64.4274]
[1642307619939,29.7813,147.37,147.23,65.76861006]
[1642307620142,23.7813,147.37,147.24,0.26]
[1642307620739,23.7813,147.37,147.24,1.60121006]
[1642307620943,23.7813,147.37,147.24,7.85121006]
[1642307622643,23.5313,147.37,147.24,7.85121006]
[1642307623241,23.5313,147.37,147.25,9.84]
[1642307623442,23.5313,147.37,147.25,16.09]
[1642307623641,23.5313,147.37,147.25,40.93991006]
[1642307623843,23.7813,147.37,147.25,40.93991006]
[1642307626350,23.7813,147.37,147.26,0.26]
[1642307626551,18.52641313,147.38,147.27,9.84]
[1642307626852,18.52641313,147.38,147.28,38.87778863]
[1642307627050,18.52641313,147.38,147.28,48.71778863]
[1642307627249,18.52641313,147.38,147.28,54.96778863]
[1642307627852,18.77641313,147.38,147.28,54.96778863]
[1642307634089,18.52641313,147.38,147.28,54.96778863]
[1642307634390,18.52641313,147.38,147.28,124.35349592]
[1642307636091,18.52641313,147.38,147.28,56.31349592]
[1642307636692,18.52641313,147.38,147.28,62.34349592]
[1642307637293,18.52641313,147.38,147.28,130.38349592]
[1642307648921,23.339,147.42,147.28,130.38349592]
[1642307649114,23.339,147.42,147.29,24.0861]
[1642307649313,23.339,147.42,147.3,10.1]
[1642307649514,23.339,147.42,147.31,92.639]
[1642307649715,23.339,147.42,147.32,9.84]
[1642307649915,45.30295133,147.42,147.33,43.74306237]
[1642307650115,45.30295133,147.42,147.34,9.84]
[1642307650316,45.30295133,147.42,147.34,16.1]
[1642307650515,45.30295133,147.42,147.34,16.35]
[1642307651919,23.339,147.42,147.34,23.727]
[1642307652119,24.7421,147.45,147.35,1.34570729]
[1642307652318,49.315,147.45,147.35,25.28510729]
[1642307652617,55.315,147.45,147.36,0.26]
[1642307652818,55.315,147.45,147.37,9.84]